bitfinex/quotes_ETHUSD_20241203
["timestamp","ask_amount","ask_price","bid_price","bid_amount"]
[1733196694060,0.7596,3648.6,3648.5,0.1034334]
[1733196694257,0.7596,3648.6,3647.7,0.7825]
[1733196694459,0.7596,3648.6,3647.7,1.19073946]
[1733196694763,0.7596,3648.6,3647.8,0.03182448]
[1733196694962,2.6381866,3648.5,3647.8,0.03182448]
[1733196695761,2.6381866,3648.5,3647.8,0.05920411]
[1733196697694,4.0,3648.2,3647.8,0.02737963]
[1733196698103,4.0,3648.2,3647.9,0.03180023]
[1733196698743,4.0,3648.2,3647.9,2.77308023]
[1733196698940,4.0,3648.2,3648.1,2.74115]
[1733196699297,4.0,3648.2,3648.1,2.77290174]
[1733196701411,2.6381866,3648.8,3648.2,2.74105]
[1733196701596,2.6381866,3648.8,3648.3,0.03170325]
[1733196701903,2.6381866,3648.8,3648.2,2.74105]
[1733196702239,2.6381866,3648.8,3648.3,0.03170325]
[1733196702747,2.6381866,3648.8,3648.3,2.74098]
[1733196703035,2.6381866,3648.8,3648.4,0.031679]
[1733196704519,4.0,3648.5,3648.4,0.031679]
[1733196704725,4.0,3648.5,3648.4,2.772599]
[1733196707634,1.19123328,3648.6,3648.4,2.772599]
[1733196710335,0.55,3648.5,3648.4,0.031679]
[1733196710495,0.55,3648.5,3648.4,0.05905863]
[1733196710688,4.55,3648.5,3648.4,0.05905863]
[1733196710908,4.55,3648.5,3648.4,0.02737963]
[1733196711409,4.55,3648.5,3648.4,0.06099506]
[1733196711652,4.55,3648.5,3648.4,0.02737963]
[1733196711850,4.0,3648.5,3648.4,1.15353829]
[1733196712021,4.0,3648.5,3648.4,3.61251506]
[1733196716631,0.7785,3649.7,3648.4,6.61251506]
[1733196716847,2.63910873,3650.1,3649.4,2.7401]
[1733196717074,3.44080873,3649.8,3649.4,0.02737963]
[1733196717718,3.44080873,3649.8,3649.5,0.03277444]
[1733196717916,0.8017,3650.2,3649.5,0.03277444]
[1733196718323,1.05794919,3650.2,3649.6,2.74002]
[1733196718519,2.63910873,3649.9,3649.6,0.06008605]
[1733196718740,4.0,3649.7,3649.6,0.06008605]
[1733196718942,4.0,3649.7,3649.6,0.02737963]
[1733196719205,4.55,3649.7,3649.6,0.05987196]
[1733196719465,4.80624058,3649.7,3649.6,0.05987682]
[1733196719621,5.63094551,3649.7,3649.6,0.05987682]
[1733196721062,4.25624058,3649.7,3649.6,2.76739963]
[1733196721237,4.0,3649.7,3649.6,2.76739963]
[1733196721421,4.0,3649.7,3649.6,2.80007198]
[1733196724080,2.63002,3649.7,3649.6,6.59267198]
[1733196724239,3.83783192,3651.1,3650.6,2.73923]
[1733196724436,0.6955326,3651.0,3650.8,2.73912]
[1733196724640,0.2559685,3651.0,3650.9,2.73905]
[1733196725146,0.2559685,3651.3,3650.9,0.03099532]
[1733196725475,0.51172314,3651.3,3650.9,0.03099532]
[1733196725683,0.25575464,3651.3,3650.9,0.03099532]
[1733196725974,2.63910873,3651.4,3650.8,0.02737963]
[1733196725975,0.55,3650.9,3650.8,0.02737963]
[1733196726136,5.3166,3650.9,3650.8,0.02737963]
[1733196726836,5.3166,3650.9,3650.8,0.05839916]
[1733196729582,5.3166,3650.9,3650.8,0.02737963]
[1733196729764,5.3166,3650.9,3650.8,0.05839916]
[1733196729960,6.14900851,3650.9,3650.8,0.02737963]
[1733196730145,6.14900851,3650.9,3650.8,0.05839916]
[1733196730334,6.14900851,3650.9,3650.8,0.02737963]
[1733196730565,6.14900851,3650.9,3650.8,0.05839916]
[1733196731578,6.14900851,3650.9,3650.8,0.02737963]
[1733196732098,8.78811724,3650.9,3650.8,0.02737963]
[1733196732388,8.21119786,3650.9,3650.8,0.02737963]
[1733196732539,7.95570873,3650.9,3650.8,0.02737963]
[1733196732739,7.95570873,3650.9,3650.8,0.05847211]
[1733196733043,7.95570873,3650.9,3650.8,0.05847698]
[1733196734483,7.95570873,3650.9,3650.8,0.02737963]
[1733196734668,9.06200024,3650.9,3650.8,0.02737963]
[1733196735760,11.80105024,3650.9,3650.8,0.02737963]
[1733196735945,12.056579,3650.9,3650.8,0.02737963]
[1733196736879,5.317529,3650.9,3650.8,0.02737963]
[1733196737187,4.21123749,3650.9,3650.8,0.02737963]
[1733196737882,7.35929307,3650.9,3650.8,0.02737963]
[1733196739248,7.35969786,3650.9,3650.8,0.02737963]
[1733196739777,14.35969786,3650.9,3650.8,0.02737963]
[1733196739977,2.73927,3650.6,3650.5,0.14499822]
[1733196740149,4.34831582,3650.6,3650.5,0.14499822]
[1733196740850,8.34831582,3650.6,3650.5,0.14499822]
[1733196741064,8.75750913,3650.6,3650.5,0.14499822]
[1733196741975,9.18379247,3650.6,3650.5,0.14499822]
[1733196742199,10.8538846,3650.6,3650.5,0.17237785]
[1733196742687,10.85473421,3650.6,3650.5,0.17237785]
[1733196743194,10.85473421,3650.6,3650.5,0.08791169]
[1733196744562,7.31216421,3650.6,3650.5,0.08791169]
[1733196744764,4.66578874,3650.6,3650.5,0.08791169]
[1733196745086,4.25607259,3650.6,3650.5,0.08791169]
[1733196745294,4.25607259,3650.6,3650.5,0.11945622]
[1733196745447,4.66578874,3650.6,3650.5,0.11945622]
[1733196745651,4.25607259,3650.6,3650.5,0.11945622]
[1733196746088,4.80622147,3650.6,3650.5,0.11945622]
[1733196749573,4.80636274,3650.6,3650.5,0.11945622]
[1733196749995,4.80636274,3650.6,3650.5,0.08791169]
[1733196750198,4.80636274,3650.6,3650.5,0.11907679]
[1733196750498,6.79110832,3650.6,3650.5,0.11907679]
[1733196750703,6.79110832,3650.6,3650.5,0.08791169]
[1733196753496,6.79135544,3650.6,3650.5,0.08791169]
[1733196755105,7.73947714,3650.6,3650.5,0.08791169]
[1733196755464,9.16199207,3650.6,3650.5,0.08791169]
[1733196756211,6.79135544,3650.6,3650.5,0.08791169]
[1733196756362,10.3069281,3650.6,3650.5,0.08791169]
[1733196756711,13.0461981,3650.6,3650.5,0.08791169]
[1733196757505,11.90152244,3650.6,3650.5,0.08791169]
[1733196758193,13.04920743,3650.6,3650.5,0.08791169]
[1733196758569,6.30993743,3650.6,3650.5,0.08791169]
[1733196758765,2.16514905,3650.6,3650.5,0.08791169]
[1733196759101,1.21679025,3650.6,3650.5,0.08791169]
[1733196759480,2.16605937,3650.6,3650.5,0.08791169]
[1733196760306,1.21679025,3650.6,3650.5,0.11950968]
[1733196760508,0.80645779,3650.6,3650.5,0.11950968]
[1733196760733,1.21679025,3650.6,3650.5,0.08791169]
[1733196760894,0.80645779,3650.6,3650.5,0.08791169]
[1733196761082,0.80645779,3650.6,3650.5,0.11951454]
[1733196761278,1.21679025,3650.6,3650.5,0.11951454]
[1733196761498,0.80645779,3650.6,3650.5,0.11951454]
[1733196761797,4.80645779,3650.6,3650.5,0.08791169]
[1733196762131,4.80645779,3650.6,3650.5,0.11951454]
[1733196763708,4.80657751,3650.6,3650.5,0.11951454]
[1733196765431,8.12046674,3650.6,3650.5,0.08791169]
[1733196765632,8.12045784,3650.6,3650.5,0.08791169]
[1733196765796,8.5310151,3650.6,3650.5,0.08791169]
[1733196766430,8.53125219,3650.6,3650.5,0.08791169]
[1733196766927,7.10613201,3650.6,3650.5,0.08791169]
[1733196767335,8.53139076,3650.6,3650.5,0.08791169]
[1733196767497,7.10613201,3650.6,3650.5,0.08791169]
[1733196767897,8.53137987,3650.6,3650.5,0.08791169]
[1733196768238,7.10613201,3650.6,3650.5,0.08791169]
[1733196768443,8.53141751,3650.6,3650.5,0.08791169]
[1733196768729,7.10613201,3650.6,3650.5,0.08791169]
[1733196769508,8.53140928,3650.6,3650.5,0.08791169]
[1733196769697,9.67909427,3650.6,3650.5,0.08791169]
[1733196770509,8.53140928,3650.6,3650.5,0.08791169]
[1733196770797,9.67924537,3650.6,3650.5,0.08791169]
[1733196771531,8.5322069,3650.6,3650.5,0.08791169]
[1733196771740,12.0405769,3650.6,3650.5,0.08791169]
[1733196772043,13.94144315,3650.6,3650.5,0.08791169]
[1733196772329,16.65854184,3650.6,3650.5,0.08791169]
[1733196772520,13.94144315,3650.6,3650.5,0.08791169]
[1733196773912,13.76476004,3650.6,3650.5,0.08791169]
[1733196774398,13.94166338,3650.6,3650.5,0.08791169]
[1733196774598,13.76490705,3650.6,3650.5,0.08791169]
[1733196774821,16.24077685,3650.6,3650.5,0.08791169]
[1733196775516,14.36953128,3650.6,3650.5,0.08791169]
[1733196775737,14.36955167,3650.6,3650.5,0.08791169]
[1733196775947,13.94164931,3650.6,3650.5,0.08791169]
[1733196776318,4.0525,3650.3,3650.2,0.00941784]
[1733196776524,15.99039881,3650.3,3650.2,0.00941784]
[1733196776757,17.89147122,3650.3,3650.2,0.00941784]
[1733196776922,20.61877657,3650.3,3650.2,0.00941784]
[1733196777457,20.19087742,3650.3,3650.2,0.00941784]
[1733196777818,0.55,3650.2,3649.2,0.7725]
[1733196778021,0.55,3649.9,3649.2,0.7725]
[1733196778256,0.55,3649.7,3649.2,0.7725]
[1733196778465,0.55,3649.5,3649.2,0.7725]
[1733196778647,0.55,3649.7,3649.2,0.7725]
[1733196778853,0.25667556,3649.6,3649.2,0.7725]
[1733196779018,4.0,3649.4,3649.2,0.7725]
[1733196779425,4.0,3649.4,3649.2,0.7949]
[1733196779872,0.55,3649.3,3649.2,0.7949]
[1733196780362,0.55,3649.6,3649.2,0.7949]
[1733196780548,0.55,3649.4,3649.2,0.7949]
[1733196781070,0.55,3649.7,3649.2,0.7949]
[1733196781375,3.18910873,3649.3,3649.2,0.0224]
[1733196781523,3.44576266,3649.3,3649.2,0.0224]
[1733196782154,3.44576266,3649.3,3649.2,0.8454]
[1733196782571,3.18910873,3649.3,3649.2,0.8454]
[1733196783674,3.18910873,3649.3,3649.2,0.0224]
[1733196783853,3.5080196,3649.3,3649.2,0.0224]
[1733196784049,3.50502903,3649.3,3649.2,0.0224]
[1733196784253,3.18611816,3649.3,3649.2,0.0224]
[1733196785643,7.18611816,3649.3,3649.2,0.0224]
[1733196786973,4.55,3649.3,3649.2,0.0224]
[1733196788045,7.18910873,3649.3,3649.2,0.0224]
[1733196789395,7.18910873,3649.3,3649.2,0.05507194]
[1733196789746,7.18910873,3649.3,3649.2,0.0224]
[1733196789938,7.18910873,3649.3,3649.2,0.05507194]
[1733196790637,3.18910873,3649.3,3649.2,0.05507194]
[1733196790839,2.3503048,3650.0,3649.2,0.05507194]
[1733196791043,2.8954821,3649.9,3649.5,2.7401]
[1733196791284,4.0,3649.6,3649.3,3.51913]
[1733196791471,4.0,3649.6,3649.5,0.0224]
[1733196791674,2.63910873,3649.9,3649.5,0.0224]
[1733196792177,0.55,3649.8,3649.5,0.0224]
[1733196793382,0.55,3649.8,3649.7,2.73995]
[1733196793582,4.55,3649.8,3649.7,2.73995]
[1733196795472,4.0,3649.8,3649.7,2.73995]
[1733196795681,4.0,3649.8,3649.7,3.882895]
[1733196795984,0.55,3650.5,3649.8,0.7656]
[1733196796186,0.55,3650.5,3649.8,0.788]
[1733196796388,2.63910873,3650.6,3649.8,1.1762895]
[1733196796555,0.25642825,3650.5,3650.2,2.73955]
[1733196796749,4.0,3650.3,3650.2,2.73955]
[1733196797390,4.0,3650.3,3650.2,2.76195]
[1733196797898,4.55,3650.3,3650.2,2.76195]
[1733196798213,4.55,3650.3,3650.2,0.0224]
[1733196801703,5.74021693,3650.3,3650.2,0.0224]
[1733196803044,5.74021693,3650.3,3650.2,2.76197]
[1733196803994,5.74021693,3650.3,3650.2,2.79355312]
[1733196804337,5.74021693,3650.3,3650.2,3.59725312]
[1733196805305,5.74021693,3650.3,3650.2,0.85768312]
[1733196807602,5.74021693,3650.3,3650.2,0.05398312]
[1733196809046,7.09433862,3650.3,3650.2,0.05398312]
[1733196809403,7.09433862,3650.3,3650.2,0.0224]
[1733196810119,7.09433862,3650.3,3650.2,0.05373991]
[1733196810743,7.09433862,3650.3,3650.2,0.0224]
[1733196811042,7.09433862,3650.3,3650.2,0.05373991]
[1733196811243,7.09433862,3650.3,3650.2,0.0224]
[1733196811552,8.04122486,3650.3,3650.2,0.0224]
[1733196811854,9.71699985,3650.3,3650.2,0.0224]
[1733196812036,10.86629893,3650.3,3650.2,0.0224]
[1733196812240,10.08619893,3650.3,3650.2,0.0224]
[1733196812424,6.56971793,3650.3,3650.2,0.0224]
[1733196812617,5.74021693,3650.3,3650.2,0.0224]
[1733196812815,5.74021693,3650.3,3650.2,0.05373991]
[1733196813014,5.74021693,3650.3,3650.2,0.0224]
[1733196814448,5.74021693,3650.3,3650.2,0.8233]
[1733196814953,5.74021693,3650.3,3650.2,0.85507767]
[1733196815623,5.74021693,3650.3,3650.2,3.59464767]
[1733196815831,5.74021693,3650.3,3650.2,0.85507767]
[1733196817142,5.74021693,3650.3,3650.2,0.05417767]
[1733196817579,5.74021693,3650.3,3650.2,0.0224]
[1733196817743,1.14929908,3651.0,3650.8,2.73912]
[1733196817947,1.14929908,3651.3,3651.2,2.73882]
[1733196818243,1.14929908,3651.5,3651.4,2.73867]
[1733196818482,0.94691375,3651.5,3651.4,2.73867]
[1733196818682,1.19021693,3651.5,3651.4,2.76983127]
[1733196818995,1.19021693,3651.5,3651.4,2.79223127]
[1733196819143,0.25572001,3651.9,3651.6,2.73851]
[1733196819345,1.19021693,3651.7,3651.6,2.76091]
[1733196819781,1.19021693,3651.7,3651.6,0.0224]
[1733196820581,1.74021693,3651.7,3651.6,2.76092]
[1733196820888,1.19021693,3651.7,3651.6,2.76092]
[1733196821088,0.1567877,3652.2,3651.8,2.73836]
[1733196821383,1.19021693,3651.9,3651.8,2.73836]
[1733196821590,2.63508923,3652.1,3651.8,2.76076]
[1733196821882,2.63508923,3652.1,3651.9,0.8239]
[1733196822799,0.55,3652.0,3651.9,0.8239]
[1733196824951,0.55,3652.1,3651.9,0.8239]
[1733196826481,0.51223611,3652.1,3651.9,0.8239]
[1733196827367,0.51223611,3652.1,3651.8,0.0224]
[1733196828173,0.51223611,3652.1,3651.9,0.02958656]
[1733196828553,0.51223611,3652.1,3651.8,0.0224]
[1733196828816,0.51223611,3652.1,3652.0,0.02956236]
[1733196828972,0.51223611,3652.1,3651.8,0.0224]
[1733196829157,0.51223611,3652.1,3652.0,0.02956236]
[1733196829358,0.51223611,3652.1,3651.8,0.0224]
[1733196829656,0.51223611,3652.1,3652.0,0.02956236]
[1733196829887,0.51223611,3652.1,3651.9,0.02958656]
[1733196830087,0.51223611,3652.1,3652.0,0.02956236]
[1733196830803,1.32713611,3652.1,3651.8,0.0224]
[1733196831392,1.32713611,3652.1,3651.9,0.02950395]
[1733196831613,2.01283041,3652.1,3651.9,0.02950395]
[1733196832393,2.01283041,3652.1,3651.8,0.0224]
[1733196832696,2.26764675,3652.1,3651.8,0.0224]
[1733196833193,2.01283041,3652.1,3651.9,0.02950395]
[1733196833396,2.26766327,3652.1,3651.8,0.0224]
[1733196833594,2.01283041,3652.1,3652.0,0.02947975]
[1733196833766,2.01283041,3652.1,3651.8,0.0224]
[1733196834098,1.32713611,3652.1,3652.0,0.05187975]
[1733196834303,1.32713611,3652.1,3652.0,0.0224]
[1733196835600,1.58197716,3652.1,3652.0,0.0224]
[1733196836097,1.58198757,3652.1,3652.0,0.0224]
[1733196836893,2.12517145,3652.1,3652.0,0.0224]
[1733196837254,3.0056082,3652.1,3652.0,0.0224]
[1733196837453,3.00564807,3652.1,3652.0,0.0224]
[1733196837677,5.48890674,3652.1,3652.0,0.0224]
[1733196837879,2.19074747,3652.1,3652.0,0.0224]
[1733196838099,0.51223611,3652.1,3652.0,0.0224]
[1733196838472,0.51223611,3652.1,3652.0,0.05185545]
[1733196838676,0.51223611,3652.1,3652.0,0.0224]
[1733196838983,0.51223611,3652.1,3652.0,0.05185545]
[1733196839800,0.51223611,3652.1,3652.0,0.0224]
[1733196840989,1.54170723,3652.1,3652.0,0.0224]
[1733196841185,1.81532635,3652.1,3652.0,0.0224]
[1733196841394,2.07048504,3652.1,3652.0,0.0224]
[1733196842001,4.55347635,3652.1,3652.0,0.0224]
[1733196842203,2.73845,3651.7,3651.6,0.10336967]
[1733196842410,7.87623799,3651.7,3651.6,0.10336967]
[1733196842579,8.82069873,3651.7,3651.6,0.10336967]
[1733196842774,9.22910181,3651.7,3651.6,0.10336967]
[1733196842980,10.64582491,3651.7,3651.6,0.10336967]
[1733196843340,9.22910181,3651.7,3651.6,0.10336967]
[1733196843485,11.79518545,3651.7,3651.6,0.10336967]
[1733196843679,7.78374458,3651.7,3651.6,0.10336967]
[1733196844025,5.04529458,3651.7,3651.6,0.10336967]
[1733196844180,4.10083384,3651.7,3651.6,0.10336967]
[1733196844384,3.69243076,3651.7,3651.6,0.13327672]
[1733196844582,3.06286376,3651.7,3651.6,0.13327672]
[1733196845226,3.06286376,3651.7,3651.6,0.10336967]
[1733196845513,3.06381812,3651.7,3651.6,0.10336967]
[1733196845826,2.25091812,3651.7,3651.6,0.13056967]
[1733196846184,1.4453254,3651.7,3651.6,0.95856967]
[1733196846523,1.189732,3651.7,3651.6,0.95856967]
[1733196846818,1.189732,3651.8,3651.6,0.98833575]
[1733196847320,0.25590707,3651.7,3651.6,0.98833575]
[1733196847489,0.51181689,3651.7,3651.6,0.98833575]
[1733196847820,0.80590707,3651.7,3651.6,0.98833575]
[1733196849081,1.99563907,3651.7,3651.6,0.98833575]
[1733196849284,1.739732,3651.7,3651.6,0.98833575]
[1733196850720,0.55,3652.0,3651.6,3.72685575]
[1733196850922,0.55,3651.7,3651.6,3.72685575]
[1733196851928,1.189732,3651.9,3651.6,1.36102133]
[1733196852087,1.739732,3651.9,3651.8,2.73834]
[1733196852283,1.739732,3651.9,3651.8,2.76554]
[1733196852487,1.739732,3651.9,3651.8,2.79522851]
[1733196852732,1.739732,3651.9,3651.8,0.05688851]
[1733196852901,2.25147337,3651.9,3651.8,0.05688851]
[1733196854985,1.06174137,3651.9,3651.8,0.05688851]
[1733196855186,2.25147337,3651.9,3651.8,0.05688851]
[1733196855431,3.03297337,3651.9,3651.8,0.05688851]
[1733196855729,3.47092268,3651.9,3651.8,0.0272]
[1733196856023,3.87980351,3651.9,3651.8,0.0568302]
[1733196856232,4.82484961,3651.9,3651.8,0.0272]
[1733196857035,6.24257473,3651.9,3651.8,0.0272]
[1733196857191,7.39187381,3651.9,3651.8,0.0272]
[1733196858117,7.96652335,3651.9,3651.8,0.0272]
[1733196858603,10.87263542,3651.9,3651.8,0.0272]
[1733196858948,10.8726049,3651.9,3651.8,0.0272]
[1733196859114,11.2794729,3651.9,3651.8,0.0272]
[1733196859457,10.87264934,3651.9,3651.8,0.0272]
[1733196859607,10.87264934,3651.9,3651.6,0.10336967]
[1733196859608,4.11455,3651.7,3651.6,0.10336967]
[1733196859807,12.9335732,3651.7,3651.6,0.10336967]
[1733196860103,14.82530337,3651.7,3651.6,0.10336967]
[1733196860633,14.83208738,3651.7,3651.6,0.10336967]
[1733196861228,11.96880147,3651.7,3651.6,0.10336967]
[1733196861632,13.41570256,3651.7,3651.6,0.10336967]
[1733196861943,16.83278959,3651.7,3651.6,0.10336967]
[1733196862182,13.96965735,3651.7,3651.6,0.10336967]
[1733196862363,2.63663309,3651.0,3650.4,0.8045]
[1733196862506,0.55,3650.9,3650.4,0.8045]
[1733196862709,0.55,3650.9,3650.4,3.54389]
[1733196863143,0.55,3650.7,3650.4,0.8045]
[1733196863741,0.55,3650.9,3650.4,0.8045]
[1733196863943,0.55,3650.9,3650.5,0.03012962]
[1733196863944,0.55,3650.7,3650.5,0.03012962]
[1733196864148,0.55,3650.7,3650.4,0.8317]
[1733196864452,0.55,3650.9,3650.5,2.76992165]
[1733196864755,0.55,3650.7,3650.5,2.76992165]
[1733196865044,0.55,3650.9,3650.5,3.13008382]
[1733196865235,1.5539793,3651.3,3650.7,2.73912]
[1733196865423,2.62110571,3651.2,3650.8,0.7621]
[1733196865621,0.2553994,3651.1,3650.8,0.81978956]
[1733196865821,0.2553994,3651.0,3650.8,0.81978956]
[1733196866023,2.97341461,3651.4,3650.8,0.7893]
[1733196866215,4.02174556,3651.3,3650.8,0.7893]
[1733196866415,0.55,3651.1,3650.8,0.7893]
[1733196866616,0.55,3651.2,3650.8,0.7893]
[1733196866860,0.55,3651.0,3650.9,0.03046535]
[1733196867456,2.63663309,3651.1,3650.9,0.03046535]
[1733196867622,0.80538826,3651.0,3650.8,0.0272]
[1733196867817,0.80538826,3650.9,3650.8,0.0272]
[1733196868520,1.75154389,3650.9,3650.8,0.0272]
[1733196869230,0.80538826,3650.9,3650.8,0.0272]
[1733196869958,1.75059213,3650.9,3650.8,0.0272]
[1733196870134,0.80538826,3650.9,3650.8,0.0272]
[1733196870331,1.75042053,3650.9,3650.8,0.0272]
[1733196871148,1.75011152,3650.9,3650.8,0.0272]
[1733196871345,2.73088515,3650.9,3650.8,0.0272]
[1733196872230,3.8761277,3650.9,3650.8,0.0272]
[1733196872439,2.73088515,3650.9,3650.8,0.0272]
[1733196872750,1.75011152,3650.9,3650.8,0.0272]
[1733196873451,1.74986444,3650.9,3650.8,0.0272]
[1733196873651,0.80538826,3650.9,3650.8,0.0272]
[1733196875734,0.80538826,3650.9,3650.8,0.05780138]
[1733196876471,0.55,3650.9,3650.8,0.05780138]
[1733196876758,0.80487244,3650.9,3650.8,0.0272]
[1733196877136,1.74924508,3650.9,3650.8,0.0272]
[1733196877340,0.80487244,3650.9,3650.8,0.0272]
[1733196877671,0.80487244,3650.9,3650.8,0.05780138]
[1733196877854,4.80487244,3650.9,3650.8,0.0272]
[1733196878534,0.80487244,3650.9,3650.8,0.0272]
[1733196878841,0.80487244,3650.9,3650.8,0.05780138]
[1733196881638,4.80487244,3650.9,3650.8,0.05780138]
[1733196881851,5.74889615,3650.9,3650.8,0.0272]
[1733196882143,4.80487244,3650.9,3650.8,0.0272]
[1733196883572,6.40267478,3650.9,3650.8,0.0272]
[1733196883866,5.99463562,3650.9,3650.8,0.0272]
[1733196884068,5.99463562,3650.9,3650.8,0.05804447]
[1733196884569,5.99463562,3650.9,3650.8,0.0272]
[1733196884773,5.99463562,3650.9,3650.8,0.05804447]
[1733196885127,5.99463562,3650.9,3650.8,0.0272]
[1733196885335,5.99463562,3650.9,3650.8,0.05804447]
[1733196886168,1.99463562,3650.9,3650.8,0.05804447]
[1733196886370,2.40315605,3650.9,3650.8,0.0272]
[1733196886673,2.65848528,3650.9,3650.8,0.05804447]
[1733196887370,2.65854553,3650.9,3650.8,0.05804447]
[1733196887780,2.6591202,3650.9,3650.8,0.05804447]
[1733196888374,2.6591202,3650.9,3650.8,0.0272]
[1733196889077,7.03955648,3650.9,3650.8,0.0272]
[1733196890289,5.8497933,3650.9,3650.8,0.0272]
[1733196890436,8.76525596,3650.9,3650.8,0.0272]
[1733196890641,10.18093866,3650.9,3650.8,0.0272]
[1733196890833,8.76525596,3650.9,3650.8,0.0272]
[1733196891359,7.03960539,3650.9,3650.8,0.0272]
[1733196891682,6.65916911,3650.9,3650.8,0.05800557]
[1733196892235,6.65916911,3650.9,3650.8,0.0272]
[1733196892431,6.65916911,3650.9,3650.8,0.05800557]
[1733196892680,4.66398007,3650.9,3650.8,2.79712557]
[1733196893145,4.25537695,3650.9,3650.8,2.79712557]
[1733196893355,4.0,3650.9,3650.8,2.79712557]
[1733196893977,5.4452657,3650.9,3650.8,0.05800557]
[1733196894341,5.4452657,3650.9,3650.8,0.0272]
[1733196894537,5.4452657,3650.9,3650.8,0.05799585]
[1733196894760,1.44527142,3650.9,3650.8,0.05799585]
[1733196895476,1.18976318,3650.9,3650.8,0.05799585]
[1733196896760,1.18976318,3650.9,3650.8,2.79711585]
[1733196897468,1.18976318,3650.9,3650.8,3.15767744]
[1733196899400,1.18976318,3650.9,3650.8,0.41855744]
[1733196899543,1.18976318,3650.9,3650.8,0.05799585]
[1733196900072,1.18976318,3650.9,3650.8,0.05766523]
[1733196901760,1.18976318,3650.9,3650.8,2.79678523]
[1733196906289,0.55,3651.0,3650.8,2.79678523]
[1733196906491,1.73976318,3651.0,3650.8,2.79678523]
[1733196908129,1.73976318,3651.0,3650.8,0.05766523]
[1733196908633,1.73976318,3651.0,3650.8,0.0272]
[1733196908832,1.73976318,3651.0,3650.9,0.03035352]
[1733196909543,5.73976318,3651.0,3650.9,0.03035352]
[1733196910910,6.68522316,3651.0,3650.9,0.03035352]
[1733196911301,6.68522316,3651.0,3650.9,2.76940352]
[1733196911633,6.68522316,3651.0,3650.9,2.73905]
[1733196911942,6.68522316,3651.0,3650.9,0.03035352]
[1733196912438,5.73976318,3651.0,3650.9,0.03035352]
[1733196916902,5.99503961,3651.0,3650.9,0.03035352]
[1733196917241,6.79133783,3651.0,3650.9,0.03035352]
[1733196919322,5.99503961,3651.0,3650.9,0.03035352]
[1733196921452,1.99503961,3651.0,3650.9,0.03035352]
[1733196921828,1.73976318,3651.0,3650.9,0.03035352]
[1733196922144,1.99521257,3651.0,3650.9,0.03035352]
[1733196923059,2.65947717,3651.0,3650.2,2.70301416]
[1733196923258,0.55,3650.4,3650.2,2.70301416]
[1733196923563,0.55,3650.4,3650.3,0.03054255]
[1733196923766,1.73976318,3650.4,3650.3,0.03054255]
[1733196923936,1.73976318,3650.4,3650.0,2.76392657]
[1733196924263,1.73976318,3650.4,3650.3,0.03058144]
[1733196924734,1.73976318,3650.4,3650.0,2.76392657]
[1733196925052,1.73976318,3650.4,3650.3,0.03058144]
[1733196925257,1.73976318,3650.4,3650.3,0.0032]
[1733196925972,6.96864069,3650.4,3650.3,0.0032]
[1733196926177,2.53136318,3650.1,3650.0,0.02421657]
[1733196926346,1.73976318,3650.1,3650.0,0.02421657]
[1733196927476,5.73976318,3650.1,3650.0,0.02421657]
[1733196928329,5.73976318,3650.1,3650.0,0.04821657]
[1733196928535,5.99458089,3650.1,3650.0,0.04821657]
[1733196931535,6.4436619,3650.1,3650.0,0.04821657]
[1733196931844,7.2454619,3650.1,3650.0,0.04821657]
[1733196932047,7.50011733,3650.1,3650.0,0.04821657]
[1733196932736,3.50011733,3650.1,3650.0,0.04821657]
[1733196933080,2.79621861,3650.1,3650.0,0.04821657]
[1733196933239,6.54156318,3650.1,3650.0,0.04821657]
[1733196933981,6.79615994,3650.1,3650.0,0.04821657]
[1733196934291,6.54156318,3650.1,3650.0,0.04821657]
[1733196934648,6.79616072,3650.1,3650.0,0.04821657]
[1733196934853,7.94546554,3650.1,3650.0,0.04821657]
[1733196935060,11.87487872,3650.1,3650.0,0.04821657]
[1733196935493,13.2251004,3650.1,3650.0,0.04821657]
[1733196935991,14.63927698,3650.1,3650.0,0.04821657]
[1733196936351,13.2251004,3650.1,3650.0,0.04821657]
[1733196936652,13.22472555,3650.1,3650.0,0.04821657]
[1733196936857,12.03496237,3650.1,3650.0,0.04821657]
[1733196938766,13.22472555,3650.1,3650.0,0.04821657]
[1733196939376,12.56289328,3650.1,3650.0,0.04821657]
[1733196939579,13.22462633,3650.1,3650.0,0.04821657]
[1733196940109,12.03486315,3650.1,3650.0,0.04821657]
[1733196940672,6.01353305,3650.1,3650.0,0.04821657]
[1733196940891,6.24607589,3650.1,3650.0,0.04821657]
[1733196941711,5.44427589,3650.1,3650.0,0.04821657]
[1733196942082,4.0,3650.1,3650.0,0.15241287]
[1733196942384,5.18976318,3650.1,3650.0,0.15241287]
[1733196943290,5.18976318,3650.1,3650.0,0.92741287]
[1733196943831,5.18976318,3650.1,3650.0,0.15241287]
[1733196944693,5.73976318,3650.1,3650.0,0.15241287]
[1733196946240,5.99459119,3650.1,3650.0,0.15241287]
[1733196946571,5.99459452,3650.1,3650.0,0.15241287]
[1733196947028,5.73976318,3650.1,3650.0,0.15241287]
[1733196947227,5.99459162,3650.1,3650.0,0.15241287]
[1733196948672,5.73976318,3650.1,3650.0,0.15241287]
[1733196948855,5.99476133,3650.1,3650.0,0.15241287]
[1733196949059,5.73976318,3650.1,3650.0,0.15241287]
[1733196951270,5.99509143,3650.1,3650.0,0.15241287]
[1733196951987,5.73976318,3650.1,3650.0,0.15241287]
[1733196954489,4.55,3650.1,3650.0,3.69093287]
[1733196954695,4.0,3650.1,3650.0,4.06276594]
[1733196957289,0.55,3650.3,3650.0,1.32304594]
[1733196957508,0.55,3650.3,3650.2,2.73957]
[1733196957717,4.55,3650.3,3650.2,2.84301312]
[1733196959399,4.55,3650.3,3650.2,0.10344312]
[1733196959800,4.55,3650.3,3650.0,3.95849964]
[1733196960044,4.55,3650.3,3650.2,0.10344312]
[1733196961291,4.55,3650.3,3650.2,3.21202009]
[1733196966531,4.55,3650.3,3650.2,3.23602009]
[1733196966730,1.18976318,3650.5,3650.3,2.73945]
[1733196966731,0.55,3650.4,3650.3,2.73945]
[1733196967032,4.55,3650.4,3650.3,2.84247772]
[1733196967558,4.55,3650.4,3650.3,2.86647772]
[1733196968238,4.55,3650.4,3650.3,3.54629485]
[1733196970852,4.0,3650.4,3650.3,3.54629485]
[1733196971169,4.0,3650.4,3650.3,2.86647772]
[1733196975128,4.7889,3650.4,3650.3,0.12702772]
[1733196975401,5.3389,3650.4,3650.3,0.024]
[1733196976101,5.3389,3650.4,3650.3,0.12713957]